[Event "Titled Tuesday Blitz November 15 Late 2022"]
[White "Klenburg, Michael"]
[Black "Kuzmicz, Krystian"]
[WhiteFideId "14102072"]
[BlackFideId "1119125"]
[WhiteElo "2405"]
[BlackElo "2380"]
[Result "0-1"]
[Round "03"]
[TimeControl "180+1"]
[Date "2022.11.16"]
[WhiteClock "0:00:20"]
[BlackClock "0:00:29"]

1. g3 {[%clk 0:03:00]}  g6 {[%clk 0:02:57]} 2. Bg2 {[%clk 0:02:57]}  Bg7 {[%clk 0:02:57]} 3. c4 {[%clk 0:02:56]}  e5 {[%clk 0:02:54]} 4. Nc3 {[%clk 0:02:56]}  d6 {[%clk 0:02:54]} 5. d3 {[%clk 0:02:55]}  f5 {[%clk 0:02:55]} 6. Nf3 {[%clk 0:02:54]}  Nf6 {[%clk 0:02:55]} 7. O-O {[%clk 0:02:54]}  O-O {[%clk 0:02:56]} 8. Rb1 {[%clk 0:02:54]}  Nc6 {[%clk 0:02:56]} 9. b4 {[%clk 0:02:54]}  h6 {[%clk 0:02:57]} 10. b5 {[%clk 0:02:54]}  Ne7 {[%clk 0:02:58]} 11. Nd2 {[%clk 0:02:54]}  g5 {[%clk 0:02:57]} 12. Ba3 {[%clk 0:02:54]}  Rb8 {[%clk 0:02:55]} 13. Qa4 {[%clk 0:02:53]}  Be6 {[%clk 0:02:54]} 14. c5 {[%clk 0:02:50]}  Ned5 {[%clk 0:02:54]} 15. Nxd5 {[%clk 0:02:49]}  Nxd5 {[%clk 0:02:55]} 16. Rfc1 {[%clk 0:02:47]}  e4 {[%clk 0:02:50]} 17. Bb2 {[%clk 0:02:36]}  Bxb2 {[%clk 0:02:42]} 18. Rxb2 {[%clk 0:02:36]}  Qf6 {[%clk 0:02:43]} 19. Rbc2 {[%clk 0:02:33]}  exd3 {[%clk 0:02:42]} 20. exd3 {[%clk 0:02:32]}  Ra8 {[%clk 0:02:17]} 21. cxd6 {[%clk 0:02:30]}  cxd6 {[%clk 0:02:17]} 22. Qa3 {[%clk 0:02:16]}  Bf7 {[%clk 0:02:11]} 23. Nc4 {[%clk 0:02:14]}  Rfd8 {[%clk 0:02:05]} 24. Na5 {[%clk 0:02:10]}  Rd7 {[%clk 0:01:59]} 25. Rc8+ {[%clk 0:01:59]}  Rxc8 {[%clk 0:01:58]} 26. Rxc8+ {[%clk 0:01:59]}  Kg7 {[%clk 0:01:59]} 27. Rc1 {[%clk 0:01:54]}  f4 {[%clk 0:01:54]} 28. Nc4 {[%clk 0:01:51]}  Qd4 {[%clk 0:01:33]} 29. Nxd6 {[%clk 0:01:46]}  Be6 {[%clk 0:01:18]} 30. Ne4 {[%clk 0:01:32]}  b6 {[%clk 0:01:17]} 31. Re1 {[%clk 0:01:05]}  Nb4 {[%clk 0:00:42]} 32. Nxg5 {[%clk 0:00:55]}  hxg5 {[%clk 0:00:41]} 33. Rxe6 {[%clk 0:00:55]}  Nc2 {[%clk 0:00:33]} 34. Re7+ {[%clk 0:00:40]}  Kf6 {[%clk 0:00:33]} 35. Rxd7 {[%clk 0:00:39]}  Qa1+ {[%clk 0:00:32]} 36. Bf1 {[%clk 0:00:38]}  Nxa3 {[%clk 0:00:32]} 37. Rxa7 {[%clk 0:00:33]}  Nxb5 {[%clk 0:00:31]} 38. Rb7 {[%clk 0:00:33]}  Nd4 {[%clk 0:00:29]} 39. Rxb6+ {[%clk 0:00:32]}  Ke7 {[%clk 0:00:30]} 40. Rb4 {[%clk 0:00:21]}  Nf3+ {[%clk 0:00:28]} 41. Kg2 {[%clk 0:00:21]}  Nd2 {[%clk 0:00:29]} 42. Be2 {[%clk 0:00:20]}  f3+ {[%clk 0:00:29]} 43. Bxf3 {[%clk 0:00:20]}  Qf1# {[%clk 0:00:29]} 0-1


[Site "https://www.chess.com"]

[Event "Titled Tuesday Blitz November 15 Late 2022"]
[White "Korchmar, Vasiliy"]
[Black "Tari, Aryan"]
[WhiteFideId "24131750"]
[BlackFideId "1510045"]
[WhiteElo "2370"]
[BlackElo "2612"]
[Result "1/2-1/2"]
[Round "03"]
[TimeControl "180+1"]
[Date "2022.11.15"]
[WhiteClock "0:00:03"]
[BlackClock "0:00:15"]

1. e4 {[%clk 0:03:00]}  e5 {[%clk 0:02:55]} 2. Nf3 {[%clk 0:03:00]}  Nc6 {[%clk 0:02:56]} 3. Bc4 {[%clk 0:03:01]}  Bc5 {[%clk 0:02:54]} 4. c3 {[%clk 0:03:01]}  Nf6 {[%clk 0:02:55]} 5. d3 {[%clk 0:03:02]}  d6 {[%clk 0:02:54]} 6. Bg5 {[%clk 0:03:02]}  a6 {[%clk 0:02:47]} 7. Nbd2 {[%clk 0:03:00]}  Ba7 {[%clk 0:02:47]} 8. O-O {[%clk 0:02:58]}  Qe7 {[%clk 0:02:45]} 9. a4 {[%clk 0:02:50]}  h6 {[%clk 0:02:42]} 10. Bh4 {[%clk 0:02:49]}  g5 {[%clk 0:02:39]} 11. Bg3 {[%clk 0:02:49]}  Nh7 {[%clk 0:02:39]} 12. Re1 {[%clk 0:02:42]}  Nf8 {[%clk 0:02:39]} 13. d4 {[%clk 0:02:42]}  Ng6 {[%clk 0:02:37]} 14. dxe5 {[%clk 0:02:00]}  Ncxe5 {[%clk 0:02:21]} 15. Nxe5 {[%clk 0:01:50]}  Nxe5 {[%clk 0:02:17]} 16. Bxe5 {[%clk 0:01:32]}  Qxe5 {[%clk 0:02:14]} 17. Nf1 {[%clk 0:01:33]}  Qc5 {[%clk 0:02:02]} 18. Ne3 {[%clk 0:01:31]}  Bd7 {[%clk 0:01:55]} 19. e5 {[%clk 0:01:27]}  O-O-O {[%clk 0:01:39]} 20. exd6 {[%clk 0:01:25]}  Be6 {[%clk 0:01:34]} 21. Bxe6+ {[%clk 0:01:17]}  fxe6 {[%clk 0:01:35]} 22. Qg4 {[%clk 0:00:37]}  Rxd6 {[%clk 0:01:35]} 23. Rad1 {[%clk 0:00:38]}  Kb8 {[%clk 0:01:14]} 24. Rxd6 {[%clk 0:00:35]}  Qxd6 {[%clk 0:01:15]} 25. Rd1 {[%clk 0:00:34]}  Qc6 {[%clk 0:01:12]} 26. Qc4 {[%clk 0:00:30]}  Bxe3 {[%clk 0:01:04]} 27. Qxc6 {[%clk 0:00:30]}  Bxf2+ {[%clk 0:01:05]} 28. Kxf2 {[%clk 0:00:31]}  bxc6 {[%clk 0:01:05]} 29. Rd7 {[%clk 0:00:27]}  Rf8+ {[%clk 0:01:03]} 30. Ke2 {[%clk 0:00:23]}  Rf4 {[%clk 0:01:02]} 31. Re7 {[%clk 0:00:16]}  Rxa4 {[%clk 0:00:59]} 32. Kd3 {[%clk 0:00:14]}  Rh4 {[%clk 0:00:53]} 33. h3 {[%clk 0:00:13]}  g4 {[%clk 0:00:53]} 34. hxg4 {[%clk 0:00:12]}  Rxg4 {[%clk 0:00:54]} 35. Rxe6 {[%clk 0:00:12]}  Rxg2 {[%clk 0:00:54]} 36. Rxc6 {[%clk 0:00:05]}  Rxb2 {[%clk 0:00:35]} 37. Rxa6 {[%clk 0:00:04]}  Rb6 {[%clk 0:00:32]} 38. Ra5 {[%clk 0:00:03]}  Kc8 {[%clk 0:00:32]} 39. Rf5 {[%clk 0:00:03]}  Re6 {[%clk 0:00:30]} 40. Rf7 {[%clk 0:00:02]}  Kd8 {[%clk 0:00:28]} 41. Rh7 {[%clk 0:00:03]}  c6 {[%clk 0:00:29]} 42. Kd4 {[%clk 0:00:03]}  Ke8 {[%clk 0:00:29]} 43. Kc5 {[%clk 0:00:03]}  Kf8 {[%clk 0:00:30]} 44. c4 {[%clk 0:00:03]}  Kg8 {[%clk 0:00:30]} 45. Rc7 {[%clk 0:00:03]}  h5 {[%clk 0:00:30]} 46. Ra7 {[%clk 0:00:02]}  h4 {[%clk 0:00:29]} 47. Ra3 {[%clk 0:00:02]}  Rh6 {[%clk 0:00:27]} 48. Rh3 {[%clk 0:00:02]}  Kf7 {[%clk 0:00:27]} 49. Kb6 {[%clk 0:00:03]}  Ke7 {[%clk 0:00:22]} 50. c5 {[%clk 0:00:03]}  Kf7 {[%clk 0:00:23]} 51. Rh2 {[%clk 0:00:02]}  h3 {[%clk 0:00:23]} 52. Kb7 {[%clk 0:00:02]}  Kg7 {[%clk 0:00:21]} 53. Kb6 {[%clk 0:00:02]}  Kf7 {[%clk 0:00:21]} 54. Kb7 {[%clk 0:00:03]}  Ke7 {[%clk 0:00:22]} 55. Kb6 {[%clk 0:00:03]}  Ke8 {[%clk 0:00:22]} 56. Kb7 {[%clk 0:00:03]}  Kd7 {[%clk 0:00:23]} 57. Rd2+ {[%clk 0:00:03]}  Ke7 {[%clk 0:00:21]} 58. Rh2 {[%clk 0:00:03]}  Ke8 {[%clk 0:00:20]} 59. Kb6 {[%clk 0:00:03]}  Kd7 {[%clk 0:00:18]} 60. Rd2+ {[%clk 0:00:02]}  Kc8 {[%clk 0:00:16]} 61. Rh2 {[%clk 0:00:02]}  Kd7 {[%clk 0:00:14]} 62. Rd2+ {[%clk 0:00:02]}  Ke7 {[%clk 0:00:14]} 63. Rh2 {[%clk 0:00:03]}  Kf7 {[%clk 0:00:15]} 1/2-1/2


[Site "https://www.chess.com"]

[Event "Titled Tuesday Blitz November 15 Late 2022"]
[White "Krasteva, Beloslava"]
[Black "Roman, Rodrigo"]
[WhiteFideId "2922029"]
[BlackFideId "3701220"]
[WhiteElo "2187"]
[BlackElo "1995"]
[Result "1-0"]
[Round "03"]
[TimeControl "180+1"]
[Date "2022.11.16"]
[WhiteClock "0:00:03"]
[BlackClock "0:00:02"]

1. c4 {[%clk 0:03:00]}  e5 {[%clk 0:02:59]} 2. d3 {[%clk 0:02:59]}  Nc6 {[%clk 0:02:54]} 3. Nf3 {[%clk 0:02:59]}  Nf6 {[%clk 0:02:28]} 4. a3 {[%clk 0:02:56]}  d5 {[%clk 0:02:25]} 5. cxd5 {[%clk 0:02:55]}  Nxd5 {[%clk 0:02:26]} 6. e3 {[%clk 0:02:49]}  Be7 {[%clk 0:02:23]} 7. Be2 {[%clk 0:02:45]}  O-O {[%clk 0:02:22]} 8. O-O {[%clk 0:02:45]}  Be6 {[%clk 0:02:21]} 9. b4 {[%clk 0:02:42]}  a6 {[%clk 0:02:21]} 10. Bb2 {[%clk 0:02:40]}  Bf6 {[%clk 0:02:16]} 11. Qc2 {[%clk 0:02:33]}  Re8 {[%clk 0:02:09]} 12. Nbd2 {[%clk 0:02:27]}  Bf5 {[%clk 0:01:52]} 13. Ne4 {[%clk 0:02:16]}  Bxe4 {[%clk 0:01:43]} 14. dxe4 {[%clk 0:02:17]}  Nb6 {[%clk 0:01:44]} 15. Rfd1 {[%clk 0:02:11]}  Qe7 {[%clk 0:01:42]} 16. Rac1 {[%clk 0:02:09]}  Rad8 {[%clk 0:01:41]} 17. Qb3 {[%clk 0:02:07]}  Rxd1+ {[%clk 0:01:34]} 18. Rxd1 {[%clk 0:02:08]}  Rd8 {[%clk 0:01:35]} 19. Rc1 {[%clk 0:02:08]}  Rd6 {[%clk 0:01:01]} 20. Ne1 {[%clk 0:02:00]}  Rd2 {[%clk 0:00:49]} 21. Bf1 {[%clk 0:01:54]}  Bh4 {[%clk 0:00:32]} 22. Nd3 {[%clk 0:01:54]}  Qf6 {[%clk 0:00:30]} 23. g3 {[%clk 0:01:53]}  Bg5 {[%clk 0:00:27]} 24. Qc3 {[%clk 0:01:45]}  Rxd3 {[%clk 0:00:02]} 25. Bxd3 {[%clk 0:01:40]}  h5 {[%clk 0:00:03]} 26. h4 {[%clk 0:01:37]}  Bxh4 {[%clk 0:00:01]} 27. gxh4 {[%clk 0:01:36]}  Qxh4 {[%clk 0:00:02]} 28. Bf1 {[%clk 0:01:34]}  Qxe4 {[%clk 0:00:02]} 29. Bg2 {[%clk 0:01:31]}  Qg4 {[%clk 0:00:03]} 30. Qd3 {[%clk 0:01:22]}  h4 {[%clk 0:00:03]} 31. Qe4 {[%clk 0:01:20]}  Qg5 {[%clk 0:00:02]} 32. Kh2 {[%clk 0:01:14]}  Nc8 {[%clk 0:00:02]} 33. Rc5 {[%clk 0:01:00]}  Nd6 {[%clk 0:00:02]} 34. Qf3 {[%clk 0:00:53]}  f6 {[%clk 0:00:03]} 35. Bh3 {[%clk 0:00:44]}  Kh7 {[%clk 0:00:02]} 36. Qg4 {[%clk 0:00:38]}  Qh6 {[%clk 0:00:02]} 37. Bc1 {[%clk 0:00:32]}  f5 {[%clk 0:00:01]} 38. Qf3 {[%clk 0:00:25]}  g6 {[%clk 0:00:02]} 39. e4 {[%clk 0:00:19]}  fxe4 {[%clk 0:00:02]} 40. Bxh6 {[%clk 0:00:16]}  exf3 {[%clk 0:00:03]} 41. Be3 {[%clk 0:00:13]}  Ne4 {[%clk 0:00:01]} 42. Rd5 {[%clk 0:00:11]}  Nf6 {[%clk 0:00:02]} 43. Rd2 {[%clk 0:00:09]}  Kg7 {[%clk 0:00:01]} 44. Rc2 {[%clk 0:00:08]}  Ne4 {[%clk 0:00:01]} 45. Bg4 {[%clk 0:00:07]}  Nd6 {[%clk 0:00:02]} 46. Bxf3 {[%clk 0:00:06]}  e4 {[%clk 0:00:03]} 47. Be2 {[%clk 0:00:06]}  Ne5 {[%clk 0:00:04]} 48. Bd1 {[%clk 0:00:05]}  Kf6 {[%clk 0:00:04]} 49. Be2 {[%clk 0:00:04]}  Nf5 {[%clk 0:00:05]} 50. Bf4 {[%clk 0:00:04]}  Nd3 {[%clk 0:00:03]} 51. Bxd3 {[%clk 0:00:03]}  exd3 {[%clk 0:00:04]} 52. Rd2 {[%clk 0:00:03]}  g5 {[%clk 0:00:04]} 53. Bxc7 {[%clk 0:00:03]}  Nh6 {[%clk 0:00:02]} 54. Rxd3 {[%clk 0:00:03]}  Ng4+ {[%clk 0:00:02]} 55. Kg2 {[%clk 0:00:03]}  Kf5 {[%clk 0:00:03]} 56. Rd5+ {[%clk 0:00:02]}  Ke4 {[%clk 0:00:03]} 57. Rxg5 {[%clk 0:00:02]}  Nf6 {[%clk 0:00:03]} 58. Rg6 {[%clk 0:00:02]}  Nd5 {[%clk 0:00:03]} 59. Rh6 {[%clk 0:00:02]}  Nxc7 {[%clk 0:00:03]} 60. Rxh4+ {[%clk 0:00:03]}  Kf5 {[%clk 0:00:03]} 61. Rh5+ {[%clk 0:00:03]}  Kg4 {[%clk 0:00:02]} 62. Rh7 {[%clk 0:00:04]}  Nb5 {[%clk 0:00:03]} 63. Rxb7 {[%clk 0:00:04]}  Nxa3 {[%clk 0:00:03]} 64. f3+ {[%clk 0:00:04]}  Kf5 {[%clk 0:00:03]} 65. Kg3 {[%clk 0:00:04]}  Nc2 {[%clk 0:00:03]} 66. Rf7+ {[%clk 0:00:04]}  Ke6 {[%clk 0:00:03]} 67. Rb7 {[%clk 0:00:04]}  Kf5 {[%clk 0:00:03]} 68. f4 {[%clk 0:00:03]}  Nd4 {[%clk 0:00:03]} 69. Rf7+ {[%clk 0:00:03]}  Ke6 {[%clk 0:00:03]} 70. Rh7 {[%clk 0:00:03]}  Kf5 {[%clk 0:00:03]} 71. Rh5+ {[%clk 0:00:02]}  Kf6 {[%clk 0:00:03]} 72. Ra5 {[%clk 0:00:03]}  Ne2+ {[%clk 0:00:02]} 73. Kg4 {[%clk 0:00:03]}  Nc3 {[%clk 0:00:01]} 74. Rxa6+ {[%clk 0:00:04]}  Kf7 {[%clk 0:00:02]} 75. f5 {[%clk 0:00:03]}  Ke8 {[%clk 0:00:03]} 76. Kg5 {[%clk 0:00:03]}  Ne4+ {[%clk 0:00:03]} 77. Kg6 {[%clk 0:00:03]}  Nf2 {[%clk 0:00:04]} 78. f6 {[%clk 0:00:04]}  Ne4 {[%clk 0:00:04]} 79. f7+ {[%clk 0:00:04]}  Ke7 {[%clk 0:00:04]} 80. Ra7+ {[%clk 0:00:04]}  Ke6 {[%clk 0:00:03]} 81. f8=Q {[%clk 0:00:04]}  Nd6 {[%clk 0:00:03]} 82. Qg8+ {[%clk 0:00:04]}  Ke5 {[%clk 0:00:02]} 83. Qd8 {[%clk 0:00:03]}  Ne4 {[%clk 0:00:02]} 84. Ra5+ {[%clk 0:00:03]}  Kf4 {[%clk 0:00:02]} 85. Qf8+ {[%clk 0:00:03]}  Kg3 {[%clk 0:00:02]} 86. Qf7 {[%clk 0:00:03]} 1-0


[Site "https://www.chess.com"]

[Event "Titled Tuesday Blitz November 15 Late 2022"]
[White "Leenhouts, Koen"]
[Black "Martinez Alcantara, Jose Eduardo"]
[WhiteFideId "1008439"]
[BlackFideId "3805662"]
[WhiteElo "2545"]
[BlackElo "3045"]
[Result "0-1"]
[Round "03"]
[TimeControl "180+1"]
[Date "2022.11.16"]
[WhiteClock "0:00:07"]
[BlackClock "0:00:48"]

1. d4 {[%clk 0:03:00]}  Nf6 {[%clk 0:02:56]} 2. c4 {[%clk 0:03:01]}  e6 {[%clk 0:02:56]} 3. Nc3 {[%clk 0:03:00]}  Bb4 {[%clk 0:02:57]} 4. Qc2 {[%clk 0:03:00]}  d6 {[%clk 0:02:57]} 5. Nf3 {[%clk 0:02:58]}  O-O {[%clk 0:02:54]} 6. Bd2 {[%clk 0:02:57]}  Nc6 {[%clk 0:02:50]} 7. a3 {[%clk 0:02:56]}  Bxc3 {[%clk 0:02:50]} 8. Bxc3 {[%clk 0:02:57]}  Qe7 {[%clk 0:02:50]} 9. e3 {[%clk 0:02:01]}  e5 {[%clk 0:02:49]} 10. d5 {[%clk 0:01:54]}  Nb8 {[%clk 0:02:47]} 11. Bd3 {[%clk 0:01:46]}  a5 {[%clk 0:02:42]} 12. b3 {[%clk 0:01:41]}  Nbd7 {[%clk 0:02:37]} 13. Nd2 {[%clk 0:01:32]}  Nc5 {[%clk 0:02:37]} 14. O-O {[%clk 0:01:29]}  Bg4 {[%clk 0:02:25]} 15. Rae1 {[%clk 0:01:28]}  Bh5 {[%clk 0:02:24]} 16. f4 {[%clk 0:01:25]}  Nxd3 {[%clk 0:02:21]} 17. Qxd3 {[%clk 0:01:25]}  Nd7 {[%clk 0:02:21]} 18. fxe5 {[%clk 0:01:20]}  dxe5 {[%clk 0:02:03]} 19. Bb2 {[%clk 0:01:19]}  Bg6 {[%clk 0:02:02]} 20. e4 {[%clk 0:01:15]}  f6 {[%clk 0:02:02]} 21. Nf3 {[%clk 0:01:11]}  Nc5 {[%clk 0:01:50]} 22. Qc2 {[%clk 0:01:09]}  c6 {[%clk 0:01:50]} 23. Nh4 {[%clk 0:01:00]}  cxd5 {[%clk 0:01:50]} 24. cxd5 {[%clk 0:01:00]}  Rac8 {[%clk 0:01:46]} 25. Nxg6 {[%clk 0:00:59]}  hxg6 {[%clk 0:01:47]} 26. Rc1 {[%clk 0:00:53]}  Qd7 {[%clk 0:01:41]} 27. Qc4 {[%clk 0:00:40]}  b5 {[%clk 0:01:37]} 28. Qe2 {[%clk 0:00:18]}  Nxb3 {[%clk 0:01:35]} 29. Rxc8 {[%clk 0:00:18]}  Rxc8 {[%clk 0:01:36]} 30. h3 {[%clk 0:00:17]}  a4 {[%clk 0:01:33]} 31. Rd1 {[%clk 0:00:17]}  Kh7 {[%clk 0:01:24]} 32. d6 {[%clk 0:00:17]}  Rc4 {[%clk 0:01:21]} 33. Qf2 {[%clk 0:00:14]}  Nc5 {[%clk 0:01:18]} 34. Qh4+ {[%clk 0:00:13]}  Kg8 {[%clk 0:01:19]} 35. Qg4 {[%clk 0:00:13]}  Qxg4 {[%clk 0:01:13]} 36. hxg4 {[%clk 0:00:12]}  Nd7 {[%clk 0:01:14]} 37. Rd5 {[%clk 0:00:12]}  Rc5 {[%clk 0:01:03]} 38. Rd2 {[%clk 0:00:11]}  Kf7 {[%clk 0:01:03]} 39. Kf2 {[%clk 0:00:11]}  Ke6 {[%clk 0:01:03]} 40. Kf3 {[%clk 0:00:11]}  Rc4 {[%clk 0:01:04]} 41. Rd5 {[%clk 0:00:09]}  Rc5 {[%clk 0:01:02]} 42. Rd2 {[%clk 0:00:10]}  Rc6 {[%clk 0:01:02]} 43. Rd5 {[%clk 0:00:09]}  Rb6 {[%clk 0:00:52]} 44. Bc3 {[%clk 0:00:09]}  Rxd6 {[%clk 0:00:48]} 45. Rxd6+ {[%clk 0:00:07]}  Kxd6 {[%clk 0:00:49]} 46. Bb4+ {[%clk 0:00:07]}  Ke6 {[%clk 0:00:50]} 47. g5 {[%clk 0:00:08]}  f5 {[%clk 0:00:48]} 48. g4 {[%clk 0:00:07]}  f4 {[%clk 0:00:48]} 0-1


[Site "https://www.chess.com"]

[Event "Titled Tuesday Blitz November 15 Late 2022"]
[White "Li, Xueyi"]
[Black "Papayan, Oleg"]
[WhiteFideId "8605912"]
[BlackFideId "4193911"]
[WhiteElo "2197"]
[BlackElo "2153"]
[Result "1-0"]
[Round "03"]
[TimeControl "180+1"]
[Date "2022.11.16"]
[WhiteClock "0:00:55"]
[BlackClock "0:00:08"]

1. d4 {[%clk 0:03:00]}  Nf6 {[%clk 0:03:00]} 2. c4 {[%clk 0:03:00]}  e6 {[%clk 0:03:00]} 3. g3 {[%clk 0:03:01]}  d5 {[%clk 0:03:00]} 4. Bg2 {[%clk 0:03:01]}  dxc4 {[%clk 0:03:01]} 5. Nf3 {[%clk 0:03:00]}  c5 {[%clk 0:03:01]} 6. O-O {[%clk 0:02:58]}  Nc6 {[%clk 0:03:01]} 7. Qa4 {[%clk 0:02:59]}  Bd7 {[%clk 0:03:01]} 8. Qxc4 {[%clk 0:02:59]}  b5 {[%clk 0:03:02]} 9. Qd3 {[%clk 0:02:59]}  c4 {[%clk 0:03:02]} 10. Qd1 {[%clk 0:02:59]}  Rc8 {[%clk 0:03:00]} 11. Ne5 {[%clk 0:02:59]}  Nxe5 {[%clk 0:03:00]} 12. dxe5 {[%clk 0:03:00]}  Nd5 {[%clk 0:03:01]} 13. Bxd5 {[%clk 0:03:00]}  exd5 {[%clk 0:03:02]} 14. Qxd5 {[%clk 0:03:00]}  Be7 {[%clk 0:02:59]} 15. a3 {[%clk 0:02:58]}  O-O {[%clk 0:02:31]} 16. Be3 {[%clk 0:02:40]}  a5 {[%clk 0:02:11]} 17. Nc3 {[%clk 0:02:33]}  b4 {[%clk 0:02:01]} 18. axb4 {[%clk 0:02:16]}  axb4 {[%clk 0:02:02]} 19. Nb5 {[%clk 0:02:16]}  Be6 {[%clk 0:01:34]} 20. Qxd8 {[%clk 0:01:56]}  Rcxd8 {[%clk 0:01:11]} 21. Nd4 {[%clk 0:01:55]}  Rd5 {[%clk 0:00:51]} 22. Nxe6 {[%clk 0:01:38]}  fxe6 {[%clk 0:00:52]} 23. f4 {[%clk 0:01:39]}  Bc5 {[%clk 0:00:30]} 24. Bxc5 {[%clk 0:01:38]}  Rxc5 {[%clk 0:00:31]} 25. Kf2 {[%clk 0:01:36]}  Rxe5 {[%clk 0:00:25]} 26. Ra7 {[%clk 0:01:25]}  Rc5 {[%clk 0:00:21]} 27. Rd1 {[%clk 0:01:23]}  Kh8 {[%clk 0:00:07]} 28. Rdd7 {[%clk 0:01:21]}  Rg8 {[%clk 0:00:07]} 29. Rdc7 {[%clk 0:01:17]}  c3 {[%clk 0:00:03]} 30. bxc3 {[%clk 0:01:12]}  Rxc3 {[%clk 0:00:04]} 31. Rxc3 {[%clk 0:01:11]}  bxc3 {[%clk 0:00:05]} 32. Rc7 {[%clk 0:01:11]}  Rf8 {[%clk 0:00:06]} 33. Rxc3 {[%clk 0:01:11]}  e5 {[%clk 0:00:06]} 34. Kf3 {[%clk 0:01:10]}  exf4 {[%clk 0:00:07]} 35. gxf4 {[%clk 0:01:10]}  h5 {[%clk 0:00:07]} 36. Rc5 {[%clk 0:01:08]}  g6 {[%clk 0:00:07]} 37. Rc7 {[%clk 0:01:08]}  Re8 {[%clk 0:00:05]} 38. e4 {[%clk 0:01:08]}  Ra8 {[%clk 0:00:05]} 39. Ke3 {[%clk 0:01:06]}  Ra3+ {[%clk 0:00:05]} 40. Kd4 {[%clk 0:01:06]}  Rh3 {[%clk 0:00:06]} 41. Ke5 {[%clk 0:01:06]}  Rxh2 {[%clk 0:00:06]} 42. Kf6 {[%clk 0:01:07]}  Re2 {[%clk 0:00:05]} 43. e5 {[%clk 0:01:07]}  h4 {[%clk 0:00:02]} 44. Rc3 {[%clk 0:01:06]}  Kg8 {[%clk 0:00:01]} 45. Kxg6 {[%clk 0:01:06]}  Rf2 {[%clk 0:00:02]} 46. f5 {[%clk 0:01:03]}  Rg2+ {[%clk 0:00:02]} 47. Kf6 {[%clk 0:01:02]}  Rg3 {[%clk 0:00:03]} 48. Rc8+ {[%clk 0:01:02]}  Kh7 {[%clk 0:00:03]} 49. e6 {[%clk 0:01:02]}  h3 {[%clk 0:00:04]} 50. e7 {[%clk 0:00:57]}  Re3 {[%clk 0:00:05]} 51. e8=Q {[%clk 0:00:54]}  Rxe8 {[%clk 0:00:06]} 52. Rxe8 {[%clk 0:00:55]}  h2 {[%clk 0:00:06]} 53. Re1 {[%clk 0:00:55]}  h1=Q {[%clk 0:00:06]} 54. Rxh1+ {[%clk 0:00:55]}  Kg8 {[%clk 0:00:07]} 55. Rh2 {[%clk 0:00:55]}  Kf8 {[%clk 0:00:08]} 56. Rh8# {[%clk 0:00:55]} 1-0


[Site "https://www.chess.com"]

[Event "Titled Tuesday Blitz November 15 Late 2022"]
[White "Maksimovic, Bojan"]
[Black "Paravyan, David"]
[WhiteFideId "14408120"]
[BlackFideId "4194985"]
[WhiteElo "2447"]
[BlackElo "2546"]
[Result "0-1"]
[Round "03"]
[TimeControl "180+1"]
[Date "2022.11.15"]
[WhiteClock "0:00:19"]
[BlackClock "0:00:08"]

1. Nf3 {[%clk 0:03:00]}  Nf6 {[%clk 0:02:58]} 2. c4 {[%clk 0:03:00]}  g6 {[%clk 0:02:57]} 3. Nc3 {[%clk 0:02:57]}  d5 {[%clk 0:02:55]} 4. cxd5 {[%clk 0:02:57]}  Nxd5 {[%clk 0:02:54]} 5. h4 {[%clk 0:02:57]}  Bg7 {[%clk 0:02:51]} 6. h5 {[%clk 0:02:56]}  Nc6 {[%clk 0:02:50]} 7. h6 {[%clk 0:02:49]}  Bf6 {[%clk 0:02:45]} 8. e3 {[%clk 0:02:49]}  Ndb4 {[%clk 0:02:41]} 9. d3 {[%clk 0:02:35]}  e5 {[%clk 0:02:06]} 10. a3 {[%clk 0:02:29]}  Na6 {[%clk 0:02:07]} 11. Nd2 {[%clk 0:02:22]}  Nc5 {[%clk 0:02:05]} 12. Nde4 {[%clk 0:02:22]}  Nxe4 {[%clk 0:02:01]} 13. dxe4 {[%clk 0:02:22]}  Qxd1+ {[%clk 0:01:57]} 14. Kxd1 {[%clk 0:02:23]}  Be6 {[%clk 0:01:55]} 15. Kc2 {[%clk 0:02:23]}  O-O-O {[%clk 0:01:45]} 16. b4 {[%clk 0:02:23]}  a5 {[%clk 0:01:33]} 17. b5 {[%clk 0:02:19]}  Nb8 {[%clk 0:01:33]} 18. Be2 {[%clk 0:01:54]}  Nd7 {[%clk 0:01:33]} 19. Na4 {[%clk 0:01:55]}  Be7 {[%clk 0:01:27]} 20. Bd2 {[%clk 0:01:52]}  Nb6 {[%clk 0:01:23]} 21. Nxb6+ {[%clk 0:01:38]}  cxb6 {[%clk 0:01:24]} 22. Bc3 {[%clk 0:01:39]}  f6 {[%clk 0:01:18]} 23. f4 {[%clk 0:01:22]}  Bc5 {[%clk 0:01:04]} 24. fxe5 {[%clk 0:01:20]}  fxe5 {[%clk 0:01:05]} 25. Bxe5 {[%clk 0:01:15]}  Rhe8 {[%clk 0:00:58]} 26. Bf6 {[%clk 0:01:13]}  Rd7 {[%clk 0:00:53]} 27. Rhd1 {[%clk 0:00:55]}  a4 {[%clk 0:00:35]} 28. Rxd7 {[%clk 0:00:53]}  Kxd7 {[%clk 0:00:35]} 29. e5 {[%clk 0:00:50]}  Rc8 {[%clk 0:00:22]} 30. Kd2 {[%clk 0:00:47]}  Bf8 {[%clk 0:00:20]} 31. Bf3 {[%clk 0:00:45]}  Rc5 {[%clk 0:00:18]} 32. Rb1 {[%clk 0:00:33]}  Kc7 {[%clk 0:00:09]} 33. Kd3 {[%clk 0:00:24]}  Bf5+ {[%clk 0:00:08]} 34. Be4 {[%clk 0:00:23]}  Rd5+ {[%clk 0:00:08]} 35. Ke2 {[%clk 0:00:19]}  Bxe4 {[%clk 0:00:09]} 36. Rb4 {[%clk 0:00:19]}  Bxb4 {[%clk 0:00:08]} 0-1


[Site "https://www.chess.com"]

[Event "Titled Tuesday Blitz November 15 Late 2022"]
[White "Manukyan, Sargis A."]
[Black "Allahverdiyeva, Ayan"]
[WhiteFideId "13303970"]
[BlackFideId "13412590"]
[WhiteElo "2187"]
[BlackElo "2021"]
[Result "1-0"]
[Round "03"]
[TimeControl "180+1"]
[Date "2022.11.16"]
[WhiteClock "0:00:03"]
[BlackClock "0:00:01"]

1. Nf3 {[%clk 0:02:19]}  d5 {[%clk 0:02:59]} 2. c4 {[%clk 0:02:19]}  d4 {[%clk 0:02:56]} 3. e3 {[%clk 0:02:19]}  dxe3 {[%clk 0:02:55]} 4. fxe3 {[%clk 0:02:20]}  c5 {[%clk 0:02:42]} 5. d4 {[%clk 0:02:21]}  e6 {[%clk 0:02:42]} 6. Nc3 {[%clk 0:02:16]}  Nf6 {[%clk 0:02:42]} 7. Bd3 {[%clk 0:02:16]}  Nc6 {[%clk 0:02:40]} 8. O-O {[%clk 0:02:06]}  cxd4 {[%clk 0:02:38]} 9. exd4 {[%clk 0:02:06]}  Nxd4 {[%clk 0:02:35]} 10. Be3 {[%clk 0:02:03]}  Bc5 {[%clk 0:02:28]} 11. Kh1 {[%clk 0:01:51]}  Nxf3 {[%clk 0:01:32]} 12. Bxc5 {[%clk 0:01:45]}  Ne5 {[%clk 0:01:32]} 13. Qa4+ {[%clk 0:01:12]}  Bd7 {[%clk 0:01:28]} 14. Qc2 {[%clk 0:01:10]}  Nxd3 {[%clk 0:01:26]} 15. Qxd3 {[%clk 0:01:10]}  Bc6 {[%clk 0:01:19]} 16. Qg3 {[%clk 0:01:07]}  Nh5 {[%clk 0:00:40]} 17. Qf2 {[%clk 0:00:56]}  f6 {[%clk 0:00:18]} 18. Rad1 {[%clk 0:00:52]}  Qc7 {[%clk 0:00:17]} 19. Bd6 {[%clk 0:00:44]}  Qf7 {[%clk 0:00:16]} 20. Rfe1 {[%clk 0:00:37]}  O-O-O {[%clk 0:00:16]} 21. Qxa7 {[%clk 0:00:35]}  Rxd6 {[%clk 0:00:09]} 22. Rxd6 {[%clk 0:00:31]}  Kc7 {[%clk 0:00:10]} 23. Qc5 {[%clk 0:00:22]}  Nf4 {[%clk 0:00:06]} 24. Nb5+ {[%clk 0:00:20]}  Kb8 {[%clk 0:00:06]} 25. Rxc6 {[%clk 0:00:20]}  bxc6 {[%clk 0:00:06]} 26. Qd6+ {[%clk 0:00:18]}  Kb7 {[%clk 0:00:05]} 27. Nd4 {[%clk 0:00:10]}  Qc7 {[%clk 0:00:03]} 28. Qb4+ {[%clk 0:00:07]}  Qb6 {[%clk 0:00:03]} 29. Qe7+ {[%clk 0:00:07]}  Qc7 {[%clk 0:00:04]} 30. Qc5 {[%clk 0:00:07]}  Nd3 {[%clk 0:00:01]} 31. Qa3 {[%clk 0:00:03]}  Nxe1 {[%clk 0:00:01]} 32. c5 {[%clk 0:00:03]} 1-0


[Site "https://www.chess.com"]